Cogmind - Beta 13 @@@ ROGUE MODE // 2024.04.17 @ 18:34:18 Player: monkeman Result: Destroyed by QW-9A6(R) with Subdweller Machine Gun Performance ------------- Evolutions (0) 0 Regions Visited (2) 400 Robots Destroyed (17) 85 Value Destroyed (521) 521 Prototype IDs (1) 20 Alien Tech Used (0) 0 Bonus (0) 0 TOTAL SCORE: 1026 Bonus ------- None Cogmind --------- Core Integrity 0/250 Matter 282/300 Energy 200/200 System Corruption 0% Temperature Cool (0) Movement Treading (320) Ox2 Location -10/Subcaves Parts ------- > --- POWER (1+3) ------ Subdweller Power Source > --- PROPULSION (2) --- Light Treads Light Treads > --- UTILITY (2) ------ Huge Storage Unit Power Bank > --- WEAPON (2) ------- Subdweller Machine Gun Subdweller Machine Gun > --- INVENTORY (25) --- Light Ion Engine Light Treads Spiked Treads Subdweller Monowheel Large Storage Unit High-capacity Battery (250) Signal Interpreter Light Armor Plating Makeshift Thermal Plating Hacking Suite Subdweller Laser Subdweller Laser Subdweller Beam Cannon Battle Rifle Subdweller Machine Gun Grenade Launcher Grenade Launcher Flamer Flamer Flamer Makeshift Spear Scrap Shield Fragment (49) Scrap Shield Fragment (47) Scrap Shield Fragment (43) Peak State ------------ > --- POWER ------------ Subdweller Power Source > --- PROPULSION ------- Light Treads Light Treads > --- UTILITY ---------- Huge Storage Unit Power Bank > --- WEAPON ----------- Subdweller Machine Gun Subdweller Machine Gun > --- INVENTORY -------- Light Ion Engine Subdweller Power Source Light Treads Spiked Treads Subdweller Monowheel Large Storage Unit High-capacity Battery Signal Interpreter Light Armor Plating Makeshift Thermal Plating Hacking Suite Subdweller Laser Subdweller Laser Subdweller Beam Cannon Battle Rifle Subdweller Machine Gun Grenade Launcher Grenade Launcher Flamer Flamer Flamer Makeshift Spear Scrap Shield Fragment Scrap Shield Fragment [Rating: 22] Favorites ----------- Power Ion Engine Engine Ion Engine Propulsion Light Treads Treads Light Treads Leg Aluminum Leg Utility Huge Storage Unit Device Power Bank Storage Huge Storage Unit Processor Signal Interpreter Protection Makeshift Thermal Plating Weapon Subdweller Machine Gun Energy Gun Small Laser Ballistic Gun Subdweller Machine Gun Ballistic Cannon Battle Cannon Launcher Grenade Launcher Impact Weapon Hammer Build | -11 -10 -10 ------- Run | Yrd Mat Sub Slots Evolved . | . . . Power . | . . . Propulsion . | . . . Utility . | . . . Weapon . | . . . Parts Attached 28 | 6 9 13 Power 4 | 1 1 2 Engine 4 | 1 1 2 Core . | . . . Reactor . | . . . Propulsion 5 | 2 2 1 Treads 3 | . 2 1 Leg 2 | 2 . . Wheel . | . . . Hover . | . . . Flight . | . . . Utility 8 | 1 4 3 Device 1 | . . 1 Storage 4 | 1 3 . Processor 1 | . 1 . Hackware . | . . . Protection 2 | . . 2 Artifact . | . . . Weapon 11 | 2 2 7 Energy Gun 1 | . . 1 Energy Cannon . | . . . Ballistic Gun 6 | 2 . 4 Ballistic Cannon 1 | . . 1 Launcher 2 | . 1 1 Special Weapon . | . . . Impact Weapon 1 | . 1 . Slashing Weapon . | . . . Piercing Weapon . | . . . Special Melee Weapon . | . . . Unidentified Prototypes 1 | . . 1 Parts Lost 4 | . . 4 Power 1 | . . 1 Propulsion 1 | . . 1 Utility . | . . . Weapon 2 | . . 2 Highest Loss Streak 2 | . . 2 To Critical Strikes . | . . . Average Slot Usage (%) 90 | . 91 90 Engine 12 | . 14 11 Treads 24 | . 20 26 Leg 2 | . 7 . Storage 13 | . 14 13 Processor 3 | . 5 2 Protection 4 | . . 6 Ballistic Gun 23 | . 21 23 Ballistic Cannon 1 | . . 2 Launcher 2 | . 5 . Naked Turns . | . . . Heaviest Build 97 | 11 90 97 Greatest Support 40 | 20 40 40 Greatest Overweight (x) 2 | 1 2 2 Average Overweight (x) 1 | . . 2 Largest Inventory Capacity 25 | 8 25 25 Average Capacity 21 | 7 15 25 Most Carried 25 | 6 13 25 Average Carried 17 | 3 10 21 Final Capacity 25 | 8 25 25 Final Carried 24 | 5 13 24 Class Distribution -------------------- 100% | Mutant Dominant Class ---------------- Mutant | -10/Materials Mutant | -10/Subcaves Resources | -11 -10 -10 ----------- Run | Yrd Mat Sub Matter Collected 737 | 212 316 209 Remotely . | . . . Salvage Created 551 | . 271 280 Parts 30 | . 17 13 Haulers Intercepted 1 | . 1 . Recyclers Shooed 1 | . 1 . Parts Field Recycled . | . . . Retrieved Matter . | . . . Parts Self-Destructed 7 | . . 7 Prevented . | . . . Kills | -11 -10 -10 ------- Run | Yrd Mat Sub Combat Hostiles Destroyed 12 | . 5 7 Guns 7 | . 3 4 AOE 5 | . 2 3 Classes Destroyed 6 | . 4 2 Hauler 1 | . 1 . Operator 2 | . 2 . Watcher 2 | . 2 . Grunt 5 | . 5 . Sentry 1 | . . 1 Subdweller 6 | . . 6 Best Kill Streak 3 | . 3 3 Combat Bots Only 3 | . 2 3 Max Kills in Single Turn 1 | . 1 1 Gunslinging . | . . . Exploded 1 | . 1 1 Melee . | . . . Uniques/NPCs Destroyed . | . . . Combat | -11 -10 -10 -------- Run | Yrd Mat Sub Hostile Shots Fired 61 | . 20 41 Missed 15 | . 9 6 Damage Taken 1061 | . 146 915 Core 250 | . 34 216 Absorbed by Shields . | . . . Ignored by Resistances 18 | . . 18 Core Remaining (%) 100 | 100 . . Volleys Fired 64 | . 39 25 Largest 2 | . 2 2 Hottest 60 | . 50 60 Shots Fired 112 | . 63 49 Gun 101 | . 57 44 Cannon 2 | . . 2 Launcher 9 | . 6 3 Special . | . . . Kinetic 96 | . 57 39 Thermal 7 | . . 7 Explosive 9 | . 6 3 Electromagnetic . | . . . Robot Hit Streak 23 | . 10 23 Robot Miss Streak 3 | . 3 2 Penetration Max . | . . . Secondary Targets . | . . . Shots Hit Robots 81 | . 38 43 Core Hits 32 | . 18 14 Critical Kills 1 | . . 1 Critical Parts Destroyed 1 | . 1 . Critical Strikes 2 | . 1 1 Destroy 2 | . 1 1 Melee Attacks 2 | . 2 . Impact 2 | . 2 . Slashing . | . . . Piercing . | . . . Sneak Attacks . | . . . Combat Hostiles . | . . . Follow-up Attacks . | . . . Damage Inflicted 1331 | . 595 736 Guns 831 | . 371 460 Cannons 19 | . . 19 Explosions 481 | . 224 257 Melee . | . . . Ramming . | . . . Kinetic 771 | . 371 400 Thermal 79 | . . 79 Explosive 481 | . 224 257 Electromagnetic . | . . . Impact . | . . . Slashing . | . . . Piercing . | . . . Highest Corruption . | . . . Average Corruption . | . . . Corruption Purged . | . . . Corruption Blocked . | . . . Overload Shots . | . . . Overflow Damage . | . . . Projectiles . | . . . Explosions . | . . . Melee . | . . . Knockbacks . | . . . Impact . | . . . Kinetic . | . . . Secondary . | . . . Self-Inflicted Damage 96 | . 24 72 Shots 4 | . 1 3 Rammed . | . . . Targets Rammed . | . . . Kicked . | . . . Crushed . | . . . Highest Temperature 6 | . 6 . Average Temperature 5 | . 5 . Received Heat Transfer 195 | . 66 129 Siege Activations . | . . . Robots Corrupted . | . . . Combat Hostiles . | . . . Parts Fried . | . . . Impact Corruptions . | . . . Robots Melted . | . . . Combat Hostiles . | . . . Parts Melted . | . . . Heat Transferred 175 | . . 175 Parts Sabotaged . | . . . Parts Stolen . | . . . Parts Stripped . | . . . Power Chain Reactions . | . . . Alert | -11 -10 -10 ------- Run | Yrd Mat Sub Peak Influence 162 | . 162 . Initial . | . . . Average 70 | . 76 . Maximum Alert Level . | . . . Low Security (%) 100 | 100 100 . Level 1 . | . . . Level 2 . | . . . Level 3 . | . . . Level 4 . | . . . Level 5 . | . . . High Security . | . . . Max Security . | . . . Squads Dispatched 2 | . 2 . Investigation 1 | . 1 . Extermination . | . . . Reinforcement 1 | . 1 . Assault . | . . . Garrison . | . . . Intercept . | . . . Searches Triggered . | . . . Construction Impeded . | . . . Haulers Reinforced . | . . . Active Scanning Responses . | . . . Cargo Convoy Interrupts . | . . . Stealth | -11 -10 -10 --------- Run | Yrd Mat Sub Distress Signals . | . . . Communications Jammed . | . . . Distress Signals . | . . . Times Spotted 23 | . 14 9 Peak Tracking Total 3 | . 3 3 Tactical Retreats . | . . . Traps | -11 -10 -10 ------- Run | Yrd Mat Sub Traps Triggered 4 | . 1 3 Indirectly . | . . . Trap Hack Attempts . | . . . Triggered . | . . . Disarmed . | . . . Reprogrammed . | . . . Reused . | . . . Traps Extracted . | . . . Installed . | . . . Triggered . | . . . Machines | -11 -10 -10 ---------- Run | Yrd Mat Sub Machines Disabled . | . . . Max in Single Turn . | . . . Machines Repaired . | . . . Machines Dismantled . | . . . Machines Sabotaged . | . . . Overloaded Fab Kills . | . . . Hacking | -11 -10 -10 --------- Run | Yrd Mat Sub Machines Accessed 5 | . 5 . Terminals 5 | . 5 . Fabricators . | . . . Repair Stations . | . . . Recycling Units . | . . . Scanalyzers . | . . . Garrison Access . | . . . Total Hacks 10 | . 10 . Successful 5 | . 5 . Failed 4 | . 4 . Catastrophic . | . . . Database Lockouts 1 | . 1 . Manual 10 | . 10 . Terminals 10 | . 10 . Fabricators . | . . . Repair Stations . | . . . Recycling Units . | . . . Scanalyzers . | . . . Garrison Access . | . . . Terminal Hacks 3 | . 3 . Robot Analysis 1 | . 1 . Locate Traps 1 | . 1 . Hauler Manifests 1 | . 1 . Fabricator Hacks . | . . . Repair Station Hacks . | . . . Recycling Unit Hacks . | . . . Scanalyzer . | . . . Garrison Access Hacks . | . . . Unauthorized Hacks 2 | . 2 . Terminals 2 | . 2 . Botnet 2 | . 2 . Fabricators . | . . . Repair Stations . | . . . Recycling Units . | . . . Scanalyzers . | . . . Garrison Access . | . . . Data Cores Recovered 1 | . 1 . Used . | . . . Hacking Detections 4 | . 4 . Full Trace Events . | . . . Feedback Events . | . . . Feedback Blocked . | . . . Robot Schematics Acquired . | . . . Robots Built . | . . . Authchips . | . . . Time . | . . . Total Robot Build Rating . | . . . Part Schematics Acquired . | . . . Parts Built . | . . . Authchips . | . . . Time . | . . . Total Part Build Rating . | . . . Parts Repaired . | . . . Time . | . . . Parts Recycled . | . . . Recycled Matter . | . . . Retrieved Matter . | . . . Retrieved Components . | . . . Parts Scanalyzed . | . . . Part Schematics Acquired . | . . . Parts Damaged . | . . . Bothacking | -11 -10 -10 ------------ Run | Yrd Mat Sub Used RIF Installer . | . . . Robots Hacked . | . . . Non-combat . | . . . Combat . | . . . Robot Hacks Applied . | . . . Relay Couplers Released . | . . . Fabnet Peak Effective % . | . . . Robots Rewired . | . . . Allies Hacked . | . . . Hacks Repelled . | . . . Allies | -11 -10 -10 -------- Run | Yrd Mat Sub Total Allies . | . . . Largest Group . | . . . Highest-Rated Group . | . . . Highest-Rated Ally . | . . . Total Orders . | . . . Ally Attacks . | . . . Total Damage . | . . . Kills . | . . . Allies Corrupted . | . . . Allies Melted . | . . . Intel | -11 -10 -10 ------- Run | Yrd Mat Sub Robot Analysis Total 1 | . 1 . Derelict Logs Recovered . | . . . Drone Launches . | . . . Drone Recoveries . | . . . Exploration | -11 -10 -10 ------------- Run | Yrd Mat Sub Turns Passed 2635 | 74 786 1775 Spaces Moved 931 | 54 371 506 Core 10 | 10 . . Treads 761 | . 255 506 Legs 160 | 44 116 . Wheels . | . . . Hover . | . . . Flight . | . . . Fastest Speed 50 | 50 120 320 Average Speed 248 | 110 171 320 Slowest Speed 320 | 120 320 320 Overloaded Moves . | . . . Propulsion Burnouts . | . . . Robots Hopped . | . . . Cave-ins Triggered . | . . . Exploration Rate (%) 29 | 4 55 30 Regions Visited 2 Branch Regions 1 Pre-discovered Areas . | . . . Known Exits Taken 1 | . 1 . Unknown Exits Taken 1 | 1 . . Scrap Searched 11 | . . 11 Spaces Dug . | . . . Terrain Destroyed 38 | . 29 9 Melee . | . . . Projectile . | . . . AOE 38 | . 29 9 Terrain Rammed . | . . . Walls Destroyed . | . . . Machines Disabled . | . . . Actions | -11 -10 -10 --------- Run | Yrd Mat Sub Total 1141 | 65 461 615 Wait 62 | . 25 37 Move 929 | 53 370 506 Hop . | . . . Pick Up 40 | 6 10 24 Fast Attach 9 | 5 3 1 Attach 7 | 1 . 6 Detach . | . . . Swap 12 | . 6 6 Drop 16 | . 6 10 Fire 64 | . 39 25 Melee 2 | . 2 . Ram . | . . . Kick . | . . . Crush . | . . . Escape Stasis . | . . . Rewire . | . . . Trap . | . . . Miscellaneous . | . . . Route ------- -11/Scrapyard -10/Materials (discovered 3 exits: [*Mat] / [*Min] / *Sub) -10/Subcaves (discovered 1 exit: *Mat) History --------- Turn | Location | Event 17 | -11/Scrapyard | Discovered new exit (range 14) 75 | -11/Scrapyard | Entered Materials 307 | -10/Materials | Build established: Mutant 332 | -10/Materials | Discovered new exit (range 16) 392 | -10/Materials | Central database locked down 616 | -10/Materials | Discovered new exit (range 15) 855 | -10/Materials | Discovered new exit (range 3) 858 | -10/Materials | Identified exit to Subcaves 861 | -10/Materials | Entered Subcaves 1023 | -10/Subcaves | Discovered new exit (range 2) 1026 | -10/Subcaves | Identified exit to Materials 1309 | -10/Subcaves | Core integrity fell below 50% 1436 | -10/Subcaves | Disturbed a concealed Subdweller 2171 | -10/Subcaves | A Subdweller sparked back to life 2171 | -10/Subcaves | A Subdweller sparked back to life 2171 | -10/Subcaves | A Subdweller sparked back to life 2193 | -10/Subcaves | Found Prototype Device 2401 | -10/Subcaves | Identified Power Bank 2402 | -10/Subcaves | Attached Power Bank, gained temporary slots: Power x3 2625 | -10/Subcaves | Core integrity fell below 20% 2636 | -10/Subcaves | Destroyed by QW-9A6(R) with Subdweller Machine Gun Last Messages --------------- 02180_ C9-HGU(R) destroyed. 02193_ Dropped Scrap Shield Fragment. 02193_ Acquired Prototype Device. 02194_ Acquired 1 matter. 02197_ The unstable cave ceiling collapses. 02224_ Sub. Optics crushed. 02279_ Subatomizers dissect the Sub. Laser. 02292_ Subatomizers dissect the Sub. Power Source. 02401_ Identified Power Bank. 02402_ Core temporarily expanded with Power slot. 02473_ Subatomizers dissect the Wheel. 02483_ Acquired 47 matter. 02505_ Subatomizers dissect the Wheel. 02525_ Acquired 33 matter. 02531_ Acquired Scrap Shield Fragment. 02613_ Sub. Power Source shoots sparks and powers down. 02618_ Dropped Broken Sub. Power Source. Map ----- +----------------------------------------------------+ | ?????????????????????????????????????????????????? | | ?????????????????????????????????????????????????? | | ?????????????????????????????????????????????????? | | ?????????????????????????????????????????????????? | | ???????????????????????????????????????# ????????# | | ??????????????????????????????????????# ???????## | | ?????????????????????????????????????# ??????## | | ????????????????????????????????????## ??????# | | ???????????????????????????????????## #?###### | | ???????????????????????????????????# # ### | | ???????????????????????????????????? # | | ????????????????????????????????????# ? | | ???????????????????????????????????## #????# | | ???????????????#???????????????????#" ##?????# | | ???????????????? ????????##?########" ####### &! | | ????????????????? ??????## ##"" ##"## ##=!& | | ?????????????????? ????## " "" # # | | ??????????????????# ??##"""" " #= | | ????????????????### ?# %] ## | | ????????????????# ## ### ## && #### | | ?????????????????# #?# ##### #??## | | ??????????????????? #### #??# #???## | | ????????????????????? ## # #??## #????## | | ??????????????????????? ### % ##???## #?????# | | ????????????????????????#R # ##?????###??????# | | ????????????????????????#@%## ##???????????????? | | ???????????????????????## ## #???????????????? | | ???????????????????????# ##???????????????? | | ???????????????????????## % ##???????????????? | | ????????????????????????# #???????????????? | | ????????????????????????## #??????????????? | | ?????????????????????????#### #??????????????? | | ????????????????????????????# #?????????????? | | ???????????????????????????? #????????????? | | ???????????????????????????? # ##????????????? | | ??????????????????????????? # #????????????? | | ???????????????????????????# # #????????????? | | ???????????????????????????## ## ????????????? | | ????????????????????????????##"#?$% ???????????? | | ??????????????????????????????##? ##$??????????? | | ?????????????????????????????????? #?"??????????? | | ?????????????????????????????????? #????????????? | | ?????????????????????????????????????????????????? | | ?????????????????????????????????????????????????? | | ?????????????????????????????????????????????????? | | ?????????????????????????????????????????????????? | | ?????????????????????????????????????????????????? | | ?????????????????????????????????????????????????? | | ?????????????????????????????????????????????????? | | ?????????????????????????????????????????????????? | +----------------------------------------------------+ Best States ------------- Heat Dissipation 25 Energy Generation 15 Energy Capacity 375 Matter Stores 300 Matter Capacity 300 Sight Range 16 Terrain Scan Density 10 Armor Coverage 150 Resistance: TH 10 Evasion (%) 55 Recoil Reduction 2 Item Schematics ----------------- None Robot Schematics ------------------ None Fabricated ------------ Nothing Alien Tech Used ----------------- None Achievements -------------- None Challenges ------------ None Game ------ Seed SchematicSwordExpander Manual? 0 Play Time 00:12:10 Cumulative 32.9 hours Start 2024.04.17 @ 18:23:51 End 2024.04.17 @ 18:34:18 Sessions 1 Manual Loads 0 Difficulty Rogue Special Mode None Game No. 42 Rogue 42 Adventurer 0 Explorer 0 Win Type - Total 1 Types 1/0/0/0/0/0/0/0/0 Lore% 19 Gallery% 36 Achievement% 26 Wizard Run 0 Options --------- Layout 1 ASCII 0 Keyboard 0 Movement Mouse Keybinds 0 Fullscreen 1 Font 24/Smallcaps Map View 50x35 Zoom Use 0% Tactical HUD 1 Map Filters NONE Filters NONE Steam 1 RUN: 9d0eeff4-3cb1-4ecf-985a-43044577e631